Cogmind - Beta 16 @@@ ROGUE MODE // 2025.10.28 @ 09:20:37 Player: Scringis Result: Destroyed by G-47 Trooper with Particle Gun Performance ------------- Evolutions (2) 1000 Regions Visited (3) 600 Robots Destroyed (27) 135 Value Destroyed (737) 737 Prototype IDs (1) 20 Alien Tech Used (0) 0 Bonus (0) 0 TOTAL SCORE: 2492 Bonus ------- None Cogmind --------- Core Integrity 0/550 Matter 300/300 Energy 100/100 System Corruption 0% Temperature Cool (9) Movement Core (200) Ox3 Location -8/Materials Parts ------- > --- POWER (1) -------- (None) > --- PROPULSION (2) --- (None) > --- UTILITY (4) ------ Medium Storage Unit Advanced Visual Processing Unit Core Analyzer > --- WEAPON (4) ------- (None) > --- INVENTORY (10) --- Ion Engine Ion Engine Advanced Heat Sink Peak State ------------ > --- POWER ------------ Light Nuclear Core > --- PROPULSION ------- Improved Aluminum Leg > --- UTILITY ---------- Advanced Heat Sink Medium Storage Unit Advanced Visual Processing Unit Core Analyzer > --- WEAPON ----------- Particle Gun Pulse Rifle > --- INVENTORY -------- Ion Engine Ion Engine [Rating: 23] Favorites ----------- Power Ion Engine Engine Ion Engine Power Core Light Nuclear Core Propulsion Improved Treads Treads Improved Treads Leg Improved Aluminum Leg Utility Light Armor Plating Device Advanced Heat Sink Storage Medium Storage Unit Processor Advanced Visual Processing Unit Protection Light Armor Plating Weapon Assault Rifle Energy Gun Pulse Rifle Ballistic Gun Assault Rifle Build | -11 -10 -9 -8 ------- Run | Yrd Mat Mat Mat Slots Evolved 4 | . . 2 2 Power . | . . . . Propulsion . | . . . . Utility 2 | . . . 2 Weapon 2 | . . 2 . Parts Attached 24 | 6 2 5 11 Power 4 | 1 . . 3 Engine 2 | 1 . . 1 Core 2 | . . . 2 Reactor . | . . . . Propulsion 6 | 2 . 2 2 Treads 4 | 2 . 2 . Leg 2 | . . . 2 Wheel . | . . . . Hover . | . . . . Flight . | . . . . Utility 7 | 1 1 1 4 Device 2 | . . . 2 Storage 2 | 1 . 1 . Processor 2 | . . . 2 Hackware . | . . . . Protection 1 | . 1 . . Artifact . | . . . . Weapon 7 | 2 1 2 2 Energy Gun 2 | . . 1 1 Energy Cannon . | . . . . Ballistic Gun 5 | 2 1 1 1 Ballistic Cannon . | . . . . Launcher . | . . . . Special Weapon . | . . . . Impact Weapon . | . . . . Slashing Weapon . | . . . . Piercing Weapon . | . . . . Special Melee Weapon . | . . . . Unidentified Prototypes 1 | . . . 1 Parts Lost 12 | . . . 12 Power 1 | . . . 1 Propulsion 4 | . . . 4 Utility 2 | . . . 2 Weapon 5 | . . . 5 Highest Loss Streak 6 | . . . 6 To Critical Strikes . | . . . . Average Backups 1 | . 1 1 2 Power 1 | . 1 1 1 Propulsion . | . . . . Utility . | . . . . Weapon . | . . . . Tool/Special . | . . . . Unused Backups 2 | . . . 2 Power 1 | . . . 1 Propulsion . | . . . . Utility 1 | . . . 1 Weapon . | . . . . Tool/Special . | . . . . Average Slot Usage (%) 80 | . 95 93 61 Engine 8 | . 14 11 3 Core 1 | . . . 4 Treads 15 | . 28 22 4 Leg 3 | . . . 8 Device 2 | . . . 6 Storage 10 | . 14 11 9 Processor 2 | . . . 6 Protection 7 | . 9 11 1 Energy Gun 7 | . . 6 12 Ballistic Gun 20 | . 28 31 6 Peak Build Rating 23 | 6 7 14 23 Average Rating 12 | 3 6 12 15 On Entrance 6 | . 6 7 14 Avg Prop Armor Cover (%) . | . . . . Naked Turns . | . . . . Heaviest Build 28 | 13 17 28 28 Greatest Support 46 | 40 40 46 46 Greatest Overweight (x) 7 | . . . 7 Average Overweight (x) . | . . . . Largest Inventory Capacity 10 | 8 8 10 10 Average Capacity 8 | 6 8 8 10 Most Carried 3 | 3 2 2 3 Average Carried 1 | . 1 1 2 Final Capacity 10 | 8 8 10 10 Final Carried 3 | 1 1 1 3 Class Distribution -------------------- 35% | Mutant 29% | Tank 19% | Scavenger-Mutant 13% | Scientist-Tank Dominant Class ---------------- Mutant | -10/Materials Tank | -9/Materials Scavenger-Mutant | -8/Materials Resources | -11 -10 -9 -8 ----------- Run | Yrd Mat Mat Mat Matter Collected 743 | 226 66 250 201 Remotely . | . . . . Salvage Created 931 | . 157 386 388 Parts 58 | . 10 32 16 Haulers Intercepted 2 | . 1 1 . Recyclers Shooed 1 | . 1 . . Parts Field Recycled . | . . . . Retrieved Matter . | . . . . Parts Self-Destructed . | . . . . Prevented . | . . . . Parts Restored . | . . . . Kills | -11 -10 -9 -8 ------- Run | Yrd Mat Mat Mat Combat Hostiles Destroyed 20 | . 2 10 8 Guns 19 | . 2 10 7 Classes Destroyed 9 | . 3 3 3 Worker 1 | . . . 1 Hauler 2 | . 1 1 . Recycler 1 | . . 1 . Operator 1 | . . . 1 Watcher 2 | . 1 1 . Swarmer 6 | . . 6 . Grunt 11 | . 2 2 7 Duelist 1 | . . . 1 Sentry 2 | . . 2 . Best Kill Streak 5 | . 3 5 3 Combat Bots Only 4 | . 2 4 3 Max Kills in Single Turn 2 | . 1 2 2 Gunslinging 1 | . . 1 . Exploded . | . . . . Melee . | . . . . Uniques/NPCs Destroyed . | . . . . Combat | -11 -10 -9 -8 -------- Run | Yrd Mat Mat Mat Hostile Shots Fired 184 | . 5 36 143 Missed 49 | . 2 15 32 Hits 135 | . 3 21 111 Melee 3 | . . . 3 Projectile 132 | . 3 21 108 Critical Strikes 2 | . . . 2 Damage Taken 1988 | . 35 233 1720 Core 633 | . 11 72 550 Absorbed by Shields . | . . . . Core Remaining (%) 92 | 100 95 82 . Volleys Fired 72 | . 9 20 43 Largest 4 | . 2 4 4 Hottest 128 | . 40 126 128 Shots Fired 173 | . 18 66 89 Gun 173 | . 18 66 89 Cannon . | . . . . Launcher . | . . . . Special . | . . . . Kinetic 121 | . 18 56 47 Thermal 52 | . . 10 42 Explosive . | . . . . Electromagnetic . | . . . . Robot Hit Streak 17 | . 6 8 17 Robot Miss Streak 3 | . 3 3 3 Penetration Max . | . . . . Secondary Targets 6 | . . 4 2 Max Gunslinging Chain 2 | . . 2 1 Shots Hit Robots 123 | . 11 37 75 Core Hits 47 | . 8 18 21 Critical Kills . | . . . . Critical Parts Destroyed . | . . . . Critical Strikes 3 | . . . 3 Burn 3 | . . . 3 Melee Attacks . | . . . . Impact . | . . . . Slashing . | . . . . Piercing . | . . . . Sneak Attacks . | . . . . Combat Hostiles . | . . . . Follow-up Attacks . | . . . . Damage Inflicted 1815 | . 149 516 1150 Guns 1804 | . 149 505 1150 Cannons . | . . . . Explosions . | . . . . Melee . | . . . . Ramming 11 | . . 11 . Kinetic 1095 | . 149 384 562 Thermal 709 | . . 121 588 Explosive . | . . . . Electromagnetic . | . . . . Impact . | . . . . Slashing . | . . . . Piercing . | . . . . Highest Corruption . | . . . . Average Corruption . | . . . . Corruption Purged . | . . . . Corruption Blocked . | . . . . Overload Shots . | . . . . Overflow Damage . | . . . . Projectiles . | . . . . Explosions . | . . . . Melee . | . . . . Knockbacks . | . . . . Impact . | . . . . Kinetic . | . . . . Secondary . | . . . . Self-Inflicted Damage . | . . . . Shots . | . . . . Rammed 4 | . . 3 1 Targets Rammed 5 | . . 4 1 Kicked . | . . . . Crushed 1 | . . 1 . Highest Temperature 425 | . 2 280 425 Average Temperature 112 | . 2 80 140 Received Heat Transfer 954 | . 18 54 882 Effects 7 | . . . 7 Shutdowns 2 | . . . 2 Energy Bleed 2 | . . . 2 Interference 3 | . . . 3 Siege Activations . | . . . . Martial Activations . | . . . . Shielding Activations . | . . . . Robots Disrupted . | . . . . Combat Hostiles . | . . . . Robots Corrupted . | . . . . Combat Hostiles . | . . . . Parts Fried . | . . . . Impact Corruptions . | . . . . Robots Melted 1 | . . . 1 Combat Hostiles 1 | . . . 1 Parts Melted 2 | . . . 2 Heat Transferred 1813 | . . 259 1554 Parts Sabotaged . | . . . . Parts Stolen . | . . . . Parts Stripped . | . . . . Power Chain Reactions . | . . . . Alert | -11 -10 -9 -8 ------- Run | Yrd Mat Mat Mat Maximum Alert Level . | . . . . Low Security (%) 100 | 100 100 100 100 Level 1 . | . . . . Level 2 . | . . . . Level 3 . | . . . . Level 4 . | . . . . Level 5 . | . . . . High Security . | . . . . Max Security . | . . . . Peak Influence 138 | . 47 138 65 Initial 33 | . . 11 33 Average 39 | . 7 65 25 Influence Increases 549 | . 54 275 220 Destroy 0b10 Robot/C 400 | . 40 200 160 Destroy 0b10 Robot/NC 35 | . 10 15 10 Destroy Leader 78 | . 4 54 20 Successful Hack 4 | . . 4 . Destroy Structure 2 | . . 2 . Lose Combat Pursuer 30 | . . . 30 Influence Decreases 549 | . 27 221 301 Entered New Map 64 | . . 16 48 Time Decay 425 | . 27 205 193 Lost Part 60 | . . . 60 Squads Dispatched 2 | . . . 2 Investigation . | . . . . Extermination . | . . . . Reinforcement 2 | . . . 2 Assault . | . . . . Garrison . | . . . . Intercept . | . . . . Searches Triggered . | . . . . Construction Impeded . | . . . . Haulers Reinforced . | . . . . Active Scanning Responses . | . . . . Cargo Convoy Interrupts . | . . . . Stealth | -11 -10 -9 -8 --------- Run | Yrd Mat Mat Mat Distress Signals 2 | . . 1 1 Communications Jammed . | . . . . Distress Signals . | . . . . Times Spotted 37 | . 4 12 21 Peak Tracking Total 6 | . 2 5 6 Tactical Retreats 2 | . . . 2 Traps | -11 -10 -9 -8 ------- Run | Yrd Mat Mat Mat Traps Triggered . | . . . . Indirectly . | . . . . Trap Hack Attempts . | . . . . Triggered . | . . . . Disarmed . | . . . . Reprogrammed . | . . . . Reused . | . . . . Traps Extracted . | . . . . Installed . | . . . . Triggered . | . . . . Machines | -11 -10 -9 -8 ---------- Run | Yrd Mat Mat Mat Machines Disabled . | . . . . Max in Single Turn . | . . . . Machines Repaired . | . . . . Machines Dismantled . | . . . . Machines Sabotaged . | . . . . Overloaded Fab Kills . | . . . . Hacking | -11 -10 -9 -8 --------- Run | Yrd Mat Mat Mat Machines Accessed 1 | . . 1 . Terminals . | . . . . Fabricators . | . . . . Repair Stations . | . . . . Recycling Units . | . . . . Scanalyzers 1 | . . 1 . Garrison Access . | . . . . Total Hacks 7 | . . 7 . Successful 6 | . . 6 . Failed 1 | . . 1 . Catastrophic . | . . . . Database Lockouts . | . . . . Manual . | . . . . Terminals . | . . . . Fabricators . | . . . . Repair Stations . | . . . . Recycling Units . | . . . . Scanalyzers 7 | . . 7 . Garrison Access . | . . . . Terminal Hacks . | . . . . Fabricator Hacks . | . . . . Repair Station Hacks . | . . . . Recycling Unit Hacks . | . . . . Scanalyzer 6 | . . 6 . Retrieve Study 6 | . . 6 . Garrison Access Hacks . | . . . . Unauthorized Hacks . | . . . . Terminals . | . . . . Fabricators . | . . . . Repair Stations . | . . . . Recycling Units . | . . . . Scanalyzers . | . . . . Garrison Access . | . . . . Data Cores Recovered 1 | . . . 1 Used . | . . . . Hacking Detections 1 | . . 1 . Full Trace Events . | . . . . Feedback Events . | . . . . Feedback Blocked . | . . . . Robot Schematics Acquired . | . . . . Robots Built . | . . . . Authchips . | . . . . Time . | . . . . Total Robot Build Rating . | . . . . Part Schematics Acquired . | . . . . Parts Built . | . . . . Authchips . | . . . . Time . | . . . . Total Part Build Rating . | . . . . Part Studies Acquired 4 | . . 4 . Parts Repaired . | . . . . Time . | . . . . Parts Recycled . | . . . . Recycled Matter . | . . . . Retrieved Matter . | . . . . Retrieved Components . | . . . . Parts Scanalyzed . | . . . . Part Schematics Acquired . | . . . . Parts Damaged . | . . . . Bothacking | -11 -10 -9 -8 ------------ Run | Yrd Mat Mat Mat Used RIF Installer . | . . . . Robots Hacked . | . . . . Non-combat . | . . . . Combat . | . . . . Robot Hacks Applied . | . . . . Relay Couplers Released . | . . . . Fabnet Peak Effective % . | . . . . Robots Rewired . | . . . . Allies Hacked . | . . . . Hacks Repelled . | . . . . Allies | -11 -10 -9 -8 -------- Run | Yrd Mat Mat Mat Total Allies . | . . . . Largest Group . | . . . . Highest-Rated Group . | . . . . Highest-Rated Ally . | . . . . Total Orders . | . . . . Ally Attacks . | . . . . Total Damage . | . . . . Kills . | . . . . Allies Corrupted . | . . . . Allies Melted . | . . . . Intel | -11 -10 -9 -8 ------- Run | Yrd Mat Mat Mat Active Infowar (turns) 215 | . . . 215 Optics 215 | . . . 215 Robot Analysis Total . | . . . . Derelict Logs Recovered . | . . . . Drone Launches . | . . . . Drone Recoveries . | . . . . Exploration | -11 -10 -9 -8 ------------- Run | Yrd Mat Mat Mat Turns Passed 1266 | 69 162 561 474 Spaces Moved 615 | 42 82 295 196 Core 50 | 9 . . 41 Treads 435 | 33 82 295 25 Legs 130 | . . . 130 Wheels . | . . . . Hover . | . . . . Flight . | . . . . Fastest Speed 50 | 50 160 160 120 Average Speed 156 | 136 160 160 155 Slowest Speed 400 | 160 160 160 400 Overloaded Moves . | . . . . Propulsion Burnouts . | . . . . Robots Hopped . | . . . . Potential Cave-ins . | . . . . Cave-ins Triggered . | . . . . Exploration Rate (%) 17 | 4 24 20 21 Regions Visited 3 Branch Regions . Pre-discovered Areas . | . . . . Known Exits Taken . | . . . . Unknown Exits Taken 3 | 1 1 1 . Scrap Searched . | . . . . Spaces Dug . | . . . . Terrain Destroyed . | . . . . Melee . | . . . . Projectile . | . . . . AOE . | . . . . Terrain Rammed . | . . . . Walls Destroyed . | . . . . Machines Disabled . | . . . . Actions | -11 -10 -9 -8 --------- Run | Yrd Mat Mat Mat Total 773 | 54 95 335 289 Wait 26 | . . 4 22 Move 612 | 41 81 294 196 Hop . | . . . . Pick Up 26 | 7 2 5 12 Fast Attach . | . . . . Attach 17 | 6 1 2 8 Detach . | . . . . Swap 7 | . 1 3 3 Drop 8 | . 1 3 4 Fire 72 | . 9 20 43 Melee . | . . . . Ram 1 | . . . 1 Kick . | . . . . Crush 4 | . . 4 . Escape Stasis . | . . . . Rewire . | . . . . Trap . | . . . . Miscellaneous . | . . . . Route ------- -11/Scrapyard -10/Materials -9/Materials -8/Materials History --------- Turn | Location | Event 4 | -11/Scrapyard | Discovered new exit (range 15) 70 | -11/Scrapyard | Entered Materials 213 | -10/Materials | Discovered new exit (range 10) 232 | -10/Materials | Entered another Materials area 232 | -9/Materials | Evolved 2 slots: Weapon x2 305 | -9/Materials | Build established: Mutant 497 | -9/Materials | Discovered new exit (range 11) 619 | -9/Materials | Build established: Tank 793 | -9/Materials | Entered another Materials area 793 | -8/Materials | Evolved 2 slots: Utility x2 939 | -8/Materials | Lost 6 parts (2n1u3w) 1211 | -8/Materials | Core integrity fell below 50% 1216 | -8/Materials | Lost 4 parts (1p1n2w) 1249 | -8/Materials | Core integrity fell below 20% 1267 | -8/Materials | Destroyed by G-47 Trooper with Particle Gun Last Messages --------------- 01153_ Acquired Core Analyzer. 01159_ Acquired Imp. Melee Analysis Suite. 01160_ Dropped Imp. Melee Analysis Suite. 01162_ Acquired Imp. Cooling System. 01164_ W-25 Informer sends out distress signal. 01177_ Particle Gun destroyed. 01177_ Pulse Rifle destroyed. 01185_ Imp. Aluminum Leg destroyed. 01185_ Lgt. Nuclear Core destroyed. 01208_ O-24 Administrator: "IFF HANDSHAKE FAILED. SECURING TERMINAL." 01211_ O-24 Administrator uses terminal to summon reinforcements. 01211_ ALERT: Hostiles spotted, dispatching reinforcements to Terminal M007. 01211_ O-24 Administrator locks terminal. 01212_ Slammed into A-02 Transporter. 01248_ K-01 Serf collects debris. 01262_ Imp. Cooling System destroyed. 01262_ Critical hit (Burn: +37). Map ----- +----------------------------------------------------+ | ?????????????????# #????????????????????????????? | | ??????????????####/###??????????????????????????? | | ??????????????# % #??????????????????????????? | | ??????????????# """ #??????????????????????????? | | ??????????????# """ #??????????????????????????? | | ??????????????# """ #??????????????????????????? | | ??????????????# #????????? #???????????????? | | ??????????????# #???????? #???????????????? | | ??????????????# ######## #???????????????? | | ??????????????# "" # #???????????????? | | ??????????????# "" # #???????????????? | | ??????????????# T" # #???????????????? | | ??????????????# "" + #??????????????????????? | | ??????????????# "" #g #??????????????????????? | | ??????????# / # ########???????????????? | | ??????????##/###### ## # #???????????????? | | ?????????? ??????##?#gY # #???????????????? | | ????????? ???????????# Y#! #???????????????? | | ?????????????????????# # #???????????????? | | ?????????????????????# + ! #???????????????? | | ?????????????????????# # #???????????????? | | ?????????????????????# ########???????????????? | | ?????????????????????# #??????????????????????? | | ??????????????######## #??????????????????????? | | ????????# #??????????????????????? | | ????????# ###### @#??????????????????????? | | ????????+ ???????????# +??????????????????????? | | ?????????????????????# #??????????????????????? | | ?????????????????????# #??????????????????????? | | ?????????????????????# #??????????????????????? | | ?????????????????????# ??????????????????????? | | ????????????????????? ??????????????????????? | | ?????????????????????# ??????????????????????? | | ?????????????????????##+##??????????????????????? | | ????????????????????????????????????????????????? | | ????????????????????????????????????????????????? | | ????????????????????????????????????????????????? | | ????????????????????????????????????????????????? | | ????????????????????????????????????????????????? | | ????????????????????????????????????????????????? | | ????????????????????????????????????????????????? | | ????????????????????????????????????????????????? | | ????????????????????????????????????????????????? | | ????????????????????????????????????????????????? | | ????????????????????????????????????????????????? | | ????????????????????????????????????????????????? | | ????????????????????????????????????????????????? | | ????????????????????????????????????????????????? | | ????????????????????????????????????????????????? | | ????????????????????????????????????????????????? | +----------------------------------------------------+ Best States ------------- Heat Dissipation 58 Energy Generation 18 Energy Capacity 250 Matter Stores 300 Matter Capacity 300 Sight Range 20 Terrain Scan Density 10 Armor Coverage 150 Evasion (%) 55 Core Analysis 6 Recoil Reduction 2 Item Schematics ----------------- None Robot Schematics ------------------ None Fabricated ------------ Nothing Repaired ---------- Nothing Studied --------- Assault Rifle | -9/Materials | Hacked Hvy. Assault Rifle | -9/Materials | Hacked Imp. Treads | -9/Materials | Hacked Ion Engine | -9/Materials | Hacked Alien Tech Used ----------------- None Achievements -------------- None Challenges ------------ None Game ------ Seed AuthchipHardenedExpander Manual? 0 Play Time 00:08:04 Cumulative 25.5 hours Start 2025.10.28 @ 09:12:42 End 2025.10.28 @ 09:20:37 Sessions 1 Manual Loads 0 Difficulty Rogue Special Mode None Game No. 80 Rogue 80 Adventurer 0 Explorer 0 Win Type - Total 0 Types 0/0/0/0/0/0/0/0/0/0 Lore% 19 Gallery% 22 Achievement% 17 Wizard Run 0 Options --------- Layout 1 ASCII 0 Keyboard 0 Movement Mouse Keybinds 0 Fullscreen 2 Font 24/Smallcaps Map View 50x35 Zoom Use 0% Tactical HUD 1 Map Filters NONE Filters NONE Steam 1 RUN: d2a487a0-306b-4d26-bef3-c68fb0b68125